bitfinex/quotes_SOLUSD_20260201
["timestamp","ask_amount","ask_price","bid_price","bid_amount"]
[1769984735333,3.92874121,101.38,101.31,43.91477535]
[1769984735529,3.92874121,101.38,101.31,34.54742867]
[1769984737341,3.92874121,101.37,101.28,0.14216157]
[1769984737538,3.92874121,101.34,101.22,9.36734668]
[1769984737847,3.92874121,101.34,101.24,9.87686052]
[1769984737848,3.92874121,101.3,101.24,9.87686052]
[1769984738019,3.92874121,101.3,101.25,9.87652002]
[1769984738214,3.92874121,101.3,101.23,9.36734668]
[1769984738434,3.92874121,101.3,101.26,9.87502561]
[1769984739033,3.92874121,101.3,101.25,9.87628264]
[1769984739242,13.80094047,101.3,101.24,24.69206788]
[1769984739646,3.92874121,101.29,101.23,9.87849451]
[1769984739938,3.92874121,101.29,101.23,34.5747308]
[1769984742233,3.92874121,101.28,101.23,34.5747308]
[1769984742636,13.7984609,101.32,101.24,9.37995089]
[1769984742842,3.92874121,101.31,101.24,9.37995089]
[1769984743140,3.92874121,101.33,101.26,9.37995089]
[1769984743336,3.92874121,101.33,101.28,9.87361769]
[1769984744236,3.92874121,101.33,101.28,34.55766192]
[1769984744425,3.92874121,101.33,101.28,43.93761281]
[1769984744931,3.92874121,101.33,101.28,34.55766192]
[1769984745125,3.92874121,101.32,101.25,9.87605849]
[1769984745325,3.92874121,101.3,101.23,9.87849451]
[1769984746029,3.92874121,101.3,101.23,34.5747308]
[1769984746646,3.92874121,101.3,101.23,43.95468169]
[1769984746818,3.92874121,101.3,101.23,34.5747308]
[1769984747021,3.92874121,101.3,101.24,9.37995089]
[1769984747434,3.92874121,101.3,101.25,34.56790122]
[1769984747741,3.92874121,101.3,101.25,43.94785211]
[1769984747945,3.92874121,101.32,101.26,9.37995089]
[1769984749253,3.92874121,101.32,101.27,34.56107435]
[1769984749546,3.92874121,101.32,101.27,43.94102524]
[1769984749734,3.92874121,101.34,101.28,9.37995089]
[1769984749934,3.92874121,101.34,101.27,34.56107435]
[1769984749935,3.92874121,101.34,101.29,9.37995089]
[1769984750323,3.92874121,101.34,101.27,34.56107435]
[1769984750529,3.92874121,101.34,101.26,9.87511052]
[1769984750733,3.92874121,101.34,101.26,34.56403013]
[1769984751453,3.92874121,101.32,101.26,24.68891961]
[1769984752048,3.92874121,101.32,101.25,9.8765432]
[1769984752643,3.92874121,101.32,101.25,43.94785211]
[1769984753442,3.92874121,101.32,101.26,9.37995089]
[1769984753651,3.92874121,101.32,101.26,36.79995089]
[1769984754836,3.92874121,101.32,101.27,34.56107435]
[1769984755641,9.86889144,101.33,101.27,34.56107435]
[1769984755843,3.92874121,101.35,101.27,43.94102524]
[1769984756036,3.92874121,101.34,101.27,34.56107435]
[1769984756238,3.92874121,101.34,101.25,9.87607805]
[1769984756540,3.92874121,101.33,101.26,9.8754142]
[1769984756842,3.92874121,101.31,101.25,24.6910223]
[1769984757843,3.92874121,101.31,101.24,34.57131567]
[1769984759152,3.92874121,101.3,101.24,9.37995089]
[1769984759343,3.92874121,101.3,101.23,9.37995089]
[1769984760346,3.92874121,101.32,101.24,120.75886039]
[1769984761430,3.92874121,101.32,101.25,9.37995089]
[1769984761951,3.92874121,101.3,101.23,9.87823196]
[1769984762151,13.80138411,101.29,101.23,34.57446825]
[1769984762349,3.92874121,101.29,101.23,34.57446825]
[1769984762648,13.79988543,101.31,101.23,43.95441914]
[1769984762955,13.79988543,101.31,101.24,36.79995089]
[1769984763550,3.92874121,101.3,101.24,36.79995089]
[1769984764232,3.92874121,101.3,101.25,34.56790122]
[1769984764747,13.79847672,101.32,101.25,43.94785211]
[1769984764940,3.92874121,101.32,101.25,71.36785211]
[1769984765644,3.92874121,101.32,101.26,9.37995089]
[1769984766158,3.92874121,101.31,101.24,9.87721106]
[1769984766448,13.7997277,101.31,101.24,43.95095886]
[1769984766645,3.92874121,101.3,101.24,43.95095886]
[1769984766950,3.92874121,101.3,101.24,34.57100797]
[1769984767550,3.92874121,101.3,101.24,43.95095886]
[1769984768558,3.92874121,101.29,101.24,34.57100797]
[1769984768857,3.92874121,101.31,101.24,43.95095886]
[1769984770458,3.92874121,101.3,101.24,43.95095886]
[1769984770654,3.92874121,101.3,101.24,34.57100797]
[1769984771257,3.92874121,101.3,101.24,9.87721106]
[1769984771458,3.92874121,101.3,101.24,43.95095886]
[1769984771755,3.92874121,101.3,101.24,34.57100797]
[1769984772356,3.92874121,101.29,101.24,34.57100797]
[1769984773058,3.92874121,101.29,101.23,9.87802996]
[1769984775154,3.92874121,101.27,101.23,9.87802996]
[1769984775560,3.92874121,101.27,101.22,37.29906344]
[1769984776146,3.92874121,101.27,101.21,9.87997768]
[1769984776352,3.92874121,101.27,101.22,9.87923449]
[1769984776538,3.92874121,101.27,101.21,9.87983955]
[1769984776938,3.92874121,101.27,101.22,9.87886957]
[1769984777348,3.92874121,101.26,101.21,34.58156308]
[1769984778648,3.92874121,101.26,101.19,9.88230223]
[1769984778854,3.92874121,101.26,101.2,9.88103235]
[1769984779646,3.92874121,101.24,101.19,34.5880339]
[1769984783464,3.92874121,101.23,101.19,34.5880339]
[1769984783863,3.92874121,101.25,101.19,43.96798479]
[1769984785460,3.92874121,101.25,101.19,34.5880339]
[1769984785768,3.92874121,101.25,101.19,43.96798479]
[1769984786357,3.92874121,101.25,101.19,71.40798479]
[1769984788064,3.92874121,101.24,101.19,62.0280339]
[1769984788258,3.92874121,101.24,101.19,34.5880339]
[1769984788448,3.92874121,101.24,101.19,43.96798479]
[1769984790959,3.92874121,101.26,101.2,9.37995089]
[1769984791275,3.92874121,101.25,101.19,120.81998202]
[1769984791567,3.92874121,101.25,101.2,9.37995089]
[1769984792262,3.92874121,101.25,101.21,34.58156308]
[1769984793969,3.92874121,101.27,101.21,43.96151397]
[1769984794170,3.92874121,101.27,101.22,9.37995089]
[1769984794372,3.92874121,101.27,101.23,9.87849451]
[1769984795588,3.92874121,101.26,101.23,9.87849451]
[1769984796656,3.92874121,101.26,101.22,34.57746833]
[1769984797261,3.92874121,101.29,101.24,9.37995089]
[1769984797862,3.92874121,101.29,101.25,9.37995089]
[1769984798873,3.92874121,101.29,101.26,9.87556784]
[1769984799186,3.92874121,101.28,101.26,9.87556784]
[1769984800277,3.92874121,101.28,101.25,24.69085335]
[1769984800461,3.92874121,101.28,101.24,9.87751876]
[1769984800661,3.92874121,101.27,101.23,9.87795717]
[1769984801780,9.87532666,101.27,101.21,34.58156308]
[1769984801961,3.92874121,101.26,101.21,34.58156308]
[1769984802161,3.92874121,101.26,101.21,43.96071484]
[1769984802571,3.92874121,101.28,101.22,9.37915176]
[1769984804283,3.92874121,101.28,101.23,34.5747308]
[1769984806083,3.92874121,101.28,101.23,43.95388256]
[1769984806465,3.92874121,101.29,101.24,36.81915176]
[1769984807159,3.92874121,101.29,101.25,9.37915176]
[1769984807384,3.92874121,101.3,101.25,9.37915176]
[1769984807569,3.92874121,101.3,101.26,9.37915176]
[1769984807967,3.92874121,101.32,101.28,9.37915176]
[1769984808171,3.92874121,101.34,101.28,9.37915176]
[1769984808383,3.92874121,101.34,101.29,43.93340192]
[1769984808585,3.92874121,101.34,101.3,9.37915176]
[1769984808883,9.86537898,101.37,101.31,13.25306023]
[1769984809088,9.86537898,101.37,101.31,31.31390847]
[1769984809463,9.86437948,101.38,101.31,40.69306023]
[1769984809865,9.86437948,101.38,101.31,27.44]
[1769984810068,34.52407567,101.38,101.29,9.8726429]
[1769984810276,4.27527085,101.35,101.27,9.87387557]
[1769984810476,34.53720149,101.34,101.27,9.87387557]
[1769984810673,34.53720149,101.34,101.26,9.87510559]
[1769984810874,3.87324383,101.33,101.27,3.87390847]
[1769984811078,3.87324383,101.33,101.27,13.25306023]
[1769984811278,3.87324383,101.33,101.27,3.87390847]
[1769984811480,3.87324383,101.33,101.28,13.25306023]
[1769984811676,3.87324383,101.33,101.27,36.81915176]
[1769984811881,3.87324383,101.33,101.27,3.87390847]
[1769984812398,3.87324383,101.32,101.28,9.87361769]
[1769984812884,3.87324383,101.32,101.27,9.87437131]
[1769984813089,3.87324383,101.32,101.27,13.74827978]
[1769984814099,3.87324383,101.32,101.27,38.43476146]
[1769984814273,3.87324383,101.32,101.27,47.81391322]
[1769984814473,3.87324383,101.32,101.27,38.43476146]
[1769984814891,3.87324383,101.32,101.27,47.81391322]
[1769984815275,3.87324383,101.32,101.27,43.94000475]
[1769984815481,3.87324383,101.32,101.28,3.87390847]
[1769984816598,3.87324383,101.33,101.29,13.74655137]
[1769984816785,3.87324383,101.33,101.29,38.42815863]
[1769984817991,3.87324383,101.33,101.29,9.8726429]
[1769984818189,3.87324383,101.33,101.24,53.66098]
[1769984818190,3.87324383,101.33,101.25,28.56480044]
[1769984818380,3.87324383,101.33,101.26,9.87462789]
[1769984818582,3.87324383,101.31,101.25,13.75009895]
[1769984818777,3.87324383,101.31,101.25,9.87619048]
[1769984819402,3.87324383,101.31,101.25,13.75009895]
[1769984819698,3.87324383,101.29,101.25,13.75009895]
[1769984819999,3.87324383,101.3,101.26,3.87390847]
[1769984821193,34.54098611,101.33,101.27,3.87390847]
[1769984821374,34.54098611,101.33,101.26,3.87390847]
[1769984822087,34.53379377,101.35,101.27,9.87459267]
[1769984822273,61.95379377,101.35,101.28,3.87390847]
[1769984822478,74.97458745,101.35,101.28,3.87390847]
[1769984823101,3.87324383,101.34,101.28,3.87390847]
[1769984823305,3.87324383,101.37,101.32,13.25306023]
[1769984823597,3.87324383,101.37,101.34,3.87390847]
[1769984823806,13.73617224,101.39,101.34,3.87390847]
[1769984823988,3.87324383,101.36,101.31,13.74460237]
[1769984824185,3.87324383,101.36,101.29,41.16606983]
[1769984824500,3.87324383,101.36,101.29,9.87242831]
[1769984825405,3.87324383,101.36,101.28,13.74718598]
[1769984825591,3.87324383,101.34,101.28,13.74718598]
[1769984825788,3.87324383,101.34,101.28,28.55740119]
[1769984826013,3.87324383,101.34,101.29,3.87390847]
[1769984826198,3.87324383,101.33,101.3,9.87156385]
[1769984827004,3.87324383,101.33,101.3,13.74547232]
[1769984827388,3.87324383,101.33,101.26,9.87508757]
[1769984827710,3.87324383,101.33,101.25,3.87390847]
[1769984827907,3.87324383,101.33,101.25,13.74997563]
[1769984828408,3.78581251,101.31,101.25,13.74997563]
[1769984829086,3.78581251,101.31,101.26,3.58838497]
[1769984829907,13.65748082,101.3,101.26,3.58838497]
[1769984830303,13.65748082,101.3,101.26,13.46394475]
[1769984831702,3.78581251,101.32,101.27,3.58838497]
[1769984832087,13.65590087,101.32,101.27,13.46240305]
[1769984832489,3.78581251,101.31,101.27,13.46240305]
[1769984832889,3.78581251,101.31,101.25,3.58838497]
[1769984833090,3.78581251,101.31,101.26,13.46345648]
[1769984833588,3.78581251,101.31,101.27,9.87452205]
[1769984835031,13.65689577,101.31,101.27,9.87452205]
[1769984835313,3.78581251,101.3,101.27,9.87452205]
[1769984835898,3.78581251,101.3,101.26,13.46348695]
[1769984837716,3.78581251,101.29,101.26,9.87510198]
[1769984838419,3.78581251,101.32,101.27,3.58838497]
[1769984838795,3.78581251,101.31,101.27,13.46246518]
[1769984839600,9.87063534,101.32,101.28,3.58838497]
[1769984839601,13.65644785,101.32,101.28,3.58838497]
[1769984839797,3.78581251,101.34,101.29,3.58838497]
[1769984841113,13.65378675,101.34,101.3,13.46005328]
[1769984841418,3.78581251,101.34,101.3,13.46005328]
[1769984841914,13.64921203,101.39,101.34,3.58838497]
[1769984842106,3.78581251,101.38,101.34,3.58838497]
[1769984842313,3.78581251,101.38,101.32,3.58838497]
[1769984842913,3.78581251,101.38,101.3,13.46005328]
[1769984843101,3.78581251,101.36,101.31,3.58838497]
[1769984845913,3.78581251,101.36,101.32,13.45810466]
[1769984846098,3.78581251,101.37,101.33,3.58838497]
[1769984846508,3.78581251,101.37,101.32,13.45810466]
[1769984846708,3.78581251,101.37,101.33,3.58838497]
[1769984846901,13.64890347,101.39,101.33,3.58838497]
[1769984847107,3.78581251,101.38,101.33,3.58838497]
[1769984847913,9.86407908,101.38,101.34,9.86777185]
[1769984848124,3.78581251,101.37,101.34,9.86777185]
[1769984848526,13.64989159,101.38,101.34,13.45615682]
[1769984849105,3.78581251,101.38,101.35,3.58838497]
[1769984849617,3.78581251,101.39,101.35,3.58838497]
[1769984850101,3.78581251,101.39,101.36,9.86582478]
[1769984850418,3.78581251,101.4,101.36,13.45420975]
[1769984851116,3.78581251,101.4,101.37,3.58838497]
[1769984851316,13.64620392,101.42,101.37,3.58838497]
[1769984851617,3.78581251,101.41,101.37,3.58838497]
[1769984852207,13.64701213,101.41,101.37,13.45315783]
[1769984852409,3.78581251,101.41,101.37,13.45315783]
[1769984852600,3.78581251,101.42,101.38,3.58838497]
[1769984853008,13.6442297,101.44,101.38,3.58838497]
[1769984853215,3.78581251,101.43,101.38,3.58838497]
[1769984853529,3.78581251,101.43,101.39,3.58838497]
[1769984854005,3.78581251,101.44,101.4,3.58838497]
[1769984854208,13.64412164,101.44,101.4,3.58838497]
[1769984854415,3.78581251,101.43,101.38,13.45178109]
[1769984854613,3.78581251,101.43,101.38,3.58838497]
[1769984854806,3.78581251,101.43,101.38,13.45222751]
[1769984855398,3.78581251,101.43,101.39,13.45128866]
[1769984855603,3.78581251,101.43,101.4,9.86186358]
[1769984856218,3.88581251,101.45,101.41,13.44844923]
[1769984856524,3.78581251,101.44,101.39,3.58838497]
[1769984857098,3.78581251,101.44,101.38,13.45216356]
[1769984857503,3.78581251,101.44,101.38,9.86377859]
[1769984857716,3.78581251,101.44,101.38,3.72304714]
[1769984857914,3.78581251,101.44,101.38,13.58686987]
[1769984858130,3.78581251,101.44,101.39,9.86267266]
[1769984858303,3.84587597,101.42,101.38,13.58648778]
[1769984859222,3.84587597,101.42,101.39,3.72304714]
[1769984859718,3.84587597,101.43,101.39,13.58593231]
[1769984860099,13.80294841,101.45,101.4,3.72304714]
[1769984860512,0.1,101.45,101.41,3.72304714]
[1769984861105,0.1,101.45,101.41,13.1021989]
[1769984861421,0.1,101.45,101.42,3.72304714]
[1769984861610,0.1,101.45,101.42,13.58236247]
[1769984861818,3.84587597,101.49,101.45,3.72304714]
[1769984862025,3.84587597,101.49,101.46,3.72304714]
[1769984862527,6.15492869,101.5,101.48,3.72304714]
[1769984862828,3.94587597,101.51,101.46,3.72304714]
[1769984863430,3.94587597,101.51,101.47,3.72304714]
[1769984863720,3.94587597,101.51,101.49,3.72304714]
[1769984863721,1e-08,101.51,101.49,3.72304714]
[1769984863923,1e-08,101.51,101.5,3.72304714]
[1769984864324,1e-08,101.51,101.5,13.06036972]
[1769984864515,1e-08,101.51,101.5,3.72304714]
[1769984864709,1e-08,101.51,101.48,65.61206291]
[1769984864911,1e-08,101.51,101.49,3.72304714]
[1769984865227,1e-08,101.51,101.48,9.85361964]
[1769984865534,1e-08,101.51,101.49,3.72304714]
[1769984865843,1e-08,101.51,101.49,13.57594438]
[1769984866829,1e-08,101.51,101.5,3.92882647]
[1769984867010,0.1,101.55,101.51,3.92882647]
[1769984867210,0.1,101.55,101.52,3.92882647]
[1769984867517,3.57708808,101.57,101.53,3.92882647]
[1769984868033,3.57708808,101.56,101.51,13.77928589]
[1769984868209,3.57708808,101.56,101.51,9.85045942]
[1769984868410,3.57708808,101.56,101.52,13.7790882]
[1769984868623,3.57708808,101.56,101.52,13.77869909]
[1769984868817,3.57708808,101.56,101.52,3.92882647]
[1769984869025,3.57708808,101.56,101.53,9.84917222]
[1769984869217,6.14423868,101.58,101.54,3.92882647]
[1769984869419,0.1,101.59,101.55,3.92882647]
[1769984869624,5.14814051,101.62,101.59,3.92882647]
[1769984869825,9.72179192,101.66,101.61,13.77037749]
[1769984870007,3.57708808,101.65,101.59,3.92882647]
[1769984870660,3.57708808,101.65,101.57,13.7738857]
[1769984870934,3.57708808,101.61,101.55,3.92882647]
[1769984871141,7.85235893,101.61,101.53,3.92882647]
[1769984871344,3.57708808,101.6,101.52,9.84970428]
[1769984871518,3.57708808,101.57,101.5,3.92882647]
[1769984871852,3.57708808,101.57,101.5,13.78043016]
[1769984872018,3.57708808,101.59,101.54,3.92882647]
[1769984872327,3.57708808,101.61,101.55,3.92882647]
[1769984873013,3.57708808,101.61,101.57,3.92882647]
[1769984873535,3.57708808,101.62,101.57,3.92882647]
[1769984873943,13.41778025,101.62,101.57,13.77359546]
[1769984874240,3.57708808,101.62,101.57,13.77359546]
[1769984874443,13.41801767,101.62,101.57,13.77359546]
[1769984874930,13.41801767,101.62,101.57,13.7742504]
[1769984875141,3.57708808,101.62,101.58,3.92882647]
[1769984875714,3.57708808,101.61,101.57,9.84542393]
[1769984875920,13.41886446,101.61,101.56,13.77490852]
[1769984876228,3.57708808,101.6,101.56,3.92882647]
[1769984876623,3.57708808,101.6,101.55,9.84679618]
[1769984877042,3.57708808,101.6,101.54,13.77681844]
[1769984877434,3.57708808,101.6,101.55,13.77604388]
[1769984877731,3.57708808,101.61,101.56,13.77520798]
[1769984878125,3.57708808,101.61,101.56,47.7285211]
[1769984878431,3.57708808,101.61,101.57,3.92882647]
[1769984878615,13.41869916,101.61,101.57,3.92882647]
[1769984878815,3.57708808,101.61,101.57,3.92882647]
[1769984879016,13.41808255,101.62,101.57,3.92882647]
[1769984879221,9.68989158,101.64,101.58,3.92882647]
[1769984879434,6.1128035,101.64,101.59,3.92882647]
[1769984879936,15.95149842,101.64,101.59,3.92882647]
[1769984880141,15.95149842,101.64,101.6,3.92882647]
[1769984880142,19.5285865,101.64,101.6,3.92882647]
[1769984880440,9.68989158,101.64,101.6,3.92882647]
[1769984880618,6.1128035,101.64,101.61,3.92882647]
[1769984881340,3.57708808,101.63,101.58,13.77308044]
[1769984881541,3.57708808,101.63,101.58,3.92882647]
[1769984881740,3.57708808,101.63,101.57,33.95018578]
[1769984881741,3.57708808,101.63,101.59,9.84343868]
[1769984881924,3.57708808,101.63,101.57,3.92882647]
[1769984882121,15.95197501,101.64,101.58,3.92882647]
[1769984882435,3.57708808,101.63,101.56,13.77450863]
[1769984883444,3.57708808,101.63,101.54,61.31709428]
[1769984883445,3.57708808,101.6,101.54,3.92882647]
[1769984883822,7.85235893,101.61,101.56,3.92882647]
[1769984884021,9.84058256,101.62,101.57,13.77420998]
[1769984884223,13.41700741,101.63,101.57,13.77420998]
[1769984884728,3.57708808,101.62,101.57,13.77420998]
[1769984885436,34.43895504,101.63,101.58,3.92882647]
[1769984885437,9.83991933,101.63,101.58,3.92882647]
[1769984885742,13.41700741,101.63,101.58,3.92882647]
[1769984886059,9.68989158,101.64,101.59,3.92882647]
[1769984886245,6.1128035,101.64,101.6,13.77134615]
[1769984886624,6.1128035,101.64,101.61,3.92882647]
[1769984886942,3.57708808,101.67,101.63,3.92882647]
[1769984887942,13.41292536,101.67,101.62,3.84204133]
[1769984888841,3.82898623,101.66,101.62,13.6821892]
[1769984889347,3.82898623,101.66,101.62,38.2836456]
[1769984889541,3.82898623,101.68,101.62,38.2836456]
[1769984889936,3.82898623,101.68,101.62,13.6821892]
[1769984890534,9.83380863,101.69,101.64,3.84204133]
[1769984890730,13.66279486,101.69,101.64,3.84204133]
[1769984890931,13.66279486,101.69,101.64,13.67973059]
[1769984891128,0.1,101.72,101.67,9.33732258]
[1769984891449,16.39983778,101.74,101.69,3.84204133]
[1769984891646,6.13987917,101.74,101.72,3.84204133]
[1769984891949,6.13987917,101.74,101.7,9.33732258]
[1769984891950,6.13987917,101.74,101.7,3.84204133]
[1769984892250,3.82898623,101.73,101.68,3.84204133]
[1769984892453,3.82898623,101.73,101.66,3.84204133]
[1769984892839,9.83090837,101.72,101.66,13.67830738]
[1769984893135,3.82898623,101.71,101.66,13.67830738]
[1769984893344,3.82898623,101.71,101.66,3.84204133]
[1769984893571,3.82898623,101.71,101.66,13.67859713]
[1769984893951,3.82898623,101.73,101.67,3.84204133]
[1769984894249,3.82898623,101.73,101.68,3.84204133]
[1769984894751,13.65903584,101.73,101.68,3.84204133]
[1769984895049,13.65903584,101.73,101.68,13.67602632]
[1769984895551,13.65893672,101.73,101.68,13.67602632]
[1769984896050,3.82898623,101.72,101.68,3.84204133]
[1769984897036,13.66007067,101.72,101.68,3.84204133]
[1769984897456,3.82898623,101.71,101.66,9.83611857]
[1769984897759,3.82898623,101.71,101.65,13.67964627]
[1769984898258,3.82898623,101.7,101.63,3.84204133]
[1769984898451,3.82898623,101.7,101.63,13.68113952]
[1769984899036,3.82898623,101.68,101.63,13.68113952]
[1769984899438,3.82898623,101.68,101.63,3.84204133]
[1769984899963,4.27527085,101.7,101.64,3.84204133]
[1769984900130,3.82898623,101.71,101.66,13.17936391]
[1769984900332,3.82898623,101.73,101.68,3.84204133]
[1769984901151,3.82898623,101.73,101.68,13.67596989]
[1769984901152,3.82898623,101.72,101.68,13.67596989]
[1769984901336,3.82898623,101.72,101.66,3.84204133]
[1769984901539,3.82898623,101.72,101.66,13.67818093]
[1769984901865,3.82898623,101.72,101.65,13.67883574]
[1769984902040,3.82898623,101.72,101.66,3.84204133]
[1769984902464,3.82898623,101.72,101.64,9.33732258]
[1769984902465,3.82898623,101.71,101.64,13.67997672]
[1769984902944,3.82898623,101.71,101.65,9.83761909]
[1769984903459,3.82898623,101.72,101.66,3.84204133]
[1769984903659,3.82898623,101.72,101.66,13.17936391]
[1769984904156,9.9688654,101.74,101.68,3.84204133]
[1769984904467,3.82898623,101.77,101.72,9.33732258]
[1769984904757,0.3143727,101.78,101.73,13.17936391]
[1769984904963,3.82898623,101.77,101.72,3.84204133]
[1769984905143,3.82898623,101.77,101.7,3.84204133]
[1769984905342,3.82898623,101.75,101.7,13.67441312]
[1769984905742,13.65603025,101.76,101.71,13.17936391]
[1769984905936,13.65603025,101.76,101.71,3.84204133]
[1769984906161,0.3143727,101.78,101.71,3.84204133]
[1769984906365,3.82898623,101.82,101.77,3.84204133]
[1769984906542,8.9666257,101.83,101.78,3.84204133]
[1769984906740,3.82898623,101.82,101.75,3.84204133]
[1769984906938,3.82898623,101.82,101.76,3.84204133]
[1769984907142,3.82898623,101.82,101.76,13.17936391]
[1769984907337,3.82898623,101.82,101.77,9.82607841]
[1769984907539,3.82898623,101.82,101.77,13.66811974]
[1769984907766,13.65026505,101.82,101.77,13.66811974]
[1769984908748,3.82898623,101.81,101.76,13.66896835]
[1769984908946,3.82898623,101.81,101.75,13.66975471]
[1769984909867,13.65216894,101.8,101.75,13.66975471]
[1769984911252,3.82898623,101.8,101.75,13.66975471]
[1769984911566,3.82898623,101.8,101.76,3.84204133]
[1769984911946,3.82898623,101.79,101.74,13.6706581]
[1769984912349,3.82898623,101.8,101.75,23.00728616]
[1769984912552,3.82898623,101.8,101.75,13.66996358]
[1769984912868,3.82898623,101.85,101.8,3.84204133]
[1769984913073,3.82898623,101.84,101.78,3.84204133]
[1769984913258,3.82898623,101.83,101.71,9.33732258]
[1769984913458,3.82898623,101.83,101.75,9.33732258]
[1769984913665,3.92898623,101.86,101.8,9.33732258]
[1769984914274,3.82898623,101.85,101.79,9.33732258]
[1769984914476,3.82898623,101.85,101.78,43.72518501]
[1769984914859,3.82898623,101.85,101.79,9.33732258]
[1769984915173,0.1,101.86,101.8,9.82318271]
[1769984915380,13.74645791,101.86,101.81,3.84204133]
[1769984915555,3.82898623,101.85,101.8,34.38113948]
[1769984915754,3.82898623,101.85,101.8,38.22318081]
[1769984916874,3.82898623,101.85,101.8,13.66522404]
[1769984917055,3.82898623,101.85,101.8,9.82318271]
[1769984917368,13.64737954,101.85,101.8,9.82318271]
[1769984917674,3.61582944,101.84,101.79,13.66604757]
[1769984919353,13.43587365,101.84,101.79,13.66604757]
[1769984920153,3.61582944,101.83,101.77,9.82536969]
[1769984920772,3.61582944,101.83,101.77,13.49481397]
[1769984921168,9.82125319,101.82,101.77,13.49481397]
[1769984921376,13.43708263,101.82,101.77,13.49481397]
[1769984922463,3.61582944,101.81,101.76,9.82667578]
[1769984923592,13.43708263,101.82,101.77,9.82546268]
[1769984923879,13.43708263,101.82,101.77,13.49490696]
[1769984924069,13.43618596,101.83,101.78,3.66944428]
[1769984924260,13.43618596,101.83,101.78,38.05677157]
[1769984924462,3.61582944,101.83,101.78,38.05677157]
[1769984924672,3.61582944,101.83,101.79,3.66944428]
[1769984926460,13.43625132,101.83,101.79,13.49318692]
[1769984926664,3.67836822,101.82,101.78,3.70967648]
[1769984927678,3.67836822,101.82,101.73,9.63613273]
[1769984927880,3.67836822,101.78,101.72,28.28633848]
[1769984928277,3.67836822,101.8,101.74,3.70967648]
[1769984928478,9.82257725,101.81,101.76,3.70967648]
[1769984928672,3.67836822,101.82,101.77,3.70967648]
[1769984929263,3.67836822,101.81,101.75,13.5376863]
[1769984929458,3.67836822,101.81,101.75,3.70967648]
[1769984929662,3.67836822,101.81,101.74,9.82880279]
[1769984929863,3.67836822,101.8,101.74,9.82880279]
[1769984930280,3.67836822,101.78,101.73,13.53932414]
[1769984930481,3.67836822,101.78,101.72,13.54004961]
[1769984930664,4.27527085,101.79,101.72,13.54004961]
[1769984930665,13.50444663,101.77,101.72,13.54004961]
[1769984931183,13.50444663,101.77,101.72,3.70967648]
[1769984931184,3.67836822,101.76,101.72,3.70967648]
[1769984931372,3.67836822,101.76,101.72,13.54055682]
[1769984932773,3.67836822,101.74,101.7,13.54199713]
[1769984933480,3.67836822,101.74,101.7,3.70967648]
[1769984933678,3.67836822,101.74,101.69,13.54342392]
[1769984933892,3.67836822,101.74,101.7,9.83272373]
[1769984934685,13.50789117,101.74,101.69,13.54299469]
[1769984935389,3.67836822,101.73,101.68,9.83433471]
[1769984935598,3.67836822,101.73,101.68,13.54401119]
[1769984936112,3.67836822,101.73,101.67,0.2]
[1769984936287,3.67836822,101.72,101.67,0.2]
[1769984936671,3.67836822,101.72,101.64,3.70967648]
[1769984936871,4.27527085,101.73,101.64,13.54831707]
[1769984936872,3.67836822,101.7,101.64,13.54831707]
[1769984938191,13.51217685,101.69,101.64,13.54831707]
[1769984938584,9.83380863,101.69,101.65,3.70967648]
[1769984939603,3.67836822,101.7,101.65,3.70967648]
[1769984939892,13.51130634,101.7,101.65,3.70967648]
[1769984940192,13.51130634,101.7,101.66,9.8367106]
[1769984941608,3.67836822,101.69,101.65,3.70967648]
[1769984941797,3.67836822,101.69,101.65,13.54727762]
[1769984942193,13.5125941,101.69,101.65,13.54727762]
[1769984942697,3.67836822,101.69,101.65,13.54727762]
[1769984943078,13.51046288,101.71,101.66,3.70967648]
[1769984943799,3.67836822,101.71,101.66,3.70967648]
[1769984944096,3.67836822,101.72,101.66,3.70967648]
[1769984944605,13.50927659,101.72,101.67,9.83574309]
[1769984945010,3.67836822,101.76,101.69,3.70967648]
[1769984945218,3.67836822,101.76,101.72,3.70967648]
[1769984945387,3.67836822,101.78,101.74,3.70967648]
[1769984946502,3.67836822,101.8,101.75,13.5376863]
[1769984946696,13.50011013,101.82,101.76,12.98922068]
[1769984946896,3.67836822,101.81,101.76,12.98922068]
[1769984947393,3.67836822,101.81,101.76,3.70967648]
[1769984947600,3.67836822,101.81,101.77,3.58094471]
[1769984947810,9.82174191,101.82,101.77,3.58094471]
[1769984948508,13.5328302,101.82,101.78,9.82511298]
[1769984948696,31.03108829,101.83,101.78,13.40605769]
[1769984948903,3.71108829,101.82,101.78,13.40605769]
[1769984949200,3.71108829,101.82,101.78,9.82511298]
[1769984952002,3.71108829,101.82,101.78,13.40605769]
[1769984955417,3.71108829,101.84,101.79,3.58094471]
[1769984955601,3.71108829,101.84,101.79,12.86048891]
[1769984955911,3.71108829,101.84,101.78,9.82511298]
[1769984956601,3.71108829,101.83,101.77,9.82561552]
[1769984956800,3.71108829,101.83,101.76,9.82658244]
[1769984957111,3.71108829,101.83,101.77,9.82573195]
[1769984957311,3.71108829,101.81,101.77,9.82573195]
[1769984961006,3.71108829,101.81,101.77,13.40667666]